bitfinex-derivatives/quotes_ETHF0:USTF0_20250115
["timestamp","ask_amount","ask_price","bid_price","bid_amount"]
[1736905179484,0.30856,3242.3,3241.9,0.30859]
[1736905179976,0.3086,3241.9,3241.6,5.6217192]
[1736905180182,0.30859,3242.0,3241.6,5.9303392]
[1736905180583,3.44994667,3241.9,3241.6,5.9303392]
[1736905180779,3.75854667,3241.9,3241.6,5.9303392]
[1736905180986,3.44994667,3241.9,3241.8,0.3086]
[1736905181386,3.75854667,3241.9,3241.7,0.30861]
[1736905182085,3.44994667,3241.9,3241.8,0.3086]
[1736905182286,3.44994667,3241.9,3241.6,3.2078]
[1736905182486,3.75854667,3241.9,3241.7,0.30861]
[1736905183089,0.30861,3241.7,3241.6,3.2078]
[1736905183290,0.30863,3241.5,3241.4,40.8]
[1736905183587,3.51643038,3241.5,3241.4,40.8]
[1736905189982,3.20780038,3241.5,3241.2,3.2078]
[1736905190189,3.20780038,3241.5,3240.4,0.30873]
[1736905190190,0.3087,3240.8,3240.4,0.30873]
[1736905190389,0.3087,3240.8,3240.4,0.30874]
[1736905190692,4.14241574,3240.7,3240.3,3.210491]
[1736905190885,4.14241574,3240.7,3240.3,3.519231]
[1736905191085,0.78981,3240.7,3240.6,40.8]
[1736905191290,0.30874,3240.4,3240.3,3.210491]
[1736905191494,0.30874,3240.4,3240.3,0.002691]
[1736905191693,3.87894675,3240.4,3240.3,0.002691]
[1736905191898,3.87894675,3240.4,3240.3,40.802691]
[1736905195496,5.16494675,3240.4,3240.3,40.802691]
[1736905197099,0.30886,3239.1,3239.0,3.2078]
[1736905197491,0.30883,3239.4,3239.0,3.2078]
[1736905197697,0.30886,3239.2,3239.0,3.2078]
[1736905198194,3.39589537,3239.1,3239.0,3.2078]
[1736905198501,3.39589537,3239.1,3238.6,3.2078]
[1736905198696,3.70475537,3239.1,3239.0,40.8]
[1736905198896,0.30886,3239.1,3239.0,40.8]
[1736905199096,3.57746078,3239.1,3239.0,40.8]
[1736905199905,0.3089,3238.8,3238.6,3.2078]
[1736905200398,0.3089,3238.8,3238.3,0.30894]
[1736905200399,0.30891,3238.6,3238.2,3.2078]
[1736905200803,0.30894,3238.3,3238.0,0.002]
[1736905201098,0.30903,3237.4,3237.2,3.2078]
[1736905201299,0.30903,3237.3,3237.2,3.2078]
[1736905201507,3.725966,3237.3,3237.2,3.2078]
[1736905201696,0.30901,3237.5,3236.6,3.2078]
[1736905201901,0.30905,3237.2,3236.6,3.2078]
[1736905202197,3.40832972,3237.1,3236.6,3.2078]
[1736905202398,3.40832972,3237.1,3236.7,0.30909]
[1736905202601,3.26239163,3237.2,3237.0,3.2078]
[1736905202907,4.8028,3237.7,3237.0,3.51685]
[1736905202908,3.58023584,3237.5,3237.0,3.51685]
[1736905203107,3.58023584,3237.5,3237.0,3.2078]
[1736905203297,0.30901,3237.6,3237.0,3.2078]
[1736905203500,3.58023584,3237.5,3237.4,3.2078]
[1736905204006,3.58023584,3237.6,3237.4,3.2078]
[1736905204197,1.286,3237.9,3237.4,3.2078]
[1736905204402,3.28088817,3237.5,3237.4,3.2078]
[1736905204601,3.28088817,3237.5,3237.0,3.2078]
[1736905204901,3.1876163,3237.6,3237.0,3.2078]
[1736905205113,3.23801578,3237.4,3237.0,3.2078]
[1736905205301,1.276,3237.8,3237.0,3.2078]
[1736905205606,0.30902,3237.4,3237.1,44.0078]
[1736905206105,3.42333069,3237.3,3237.1,44.0078]
[1736905207205,0.30904,3237.2,3237.1,44.0078]
[1736905207401,2.53835464,3237.5,3237.1,49.0078]
[1736905207600,0.77203,3239.7,3237.5,3.2078]
[1736905207601,4.20138622,3239.7,3237.5,3.2078]
[1736905207804,3.33259464,3239.1,3239.0,3.2078]
[1736905208004,3.55500775,3239.8,3239.0,3.2078]
[1736905208005,3.10441473,3239.6,3239.0,3.2078]
[1736905208206,3.10441473,3239.6,3239.4,3.2078]
[1736905208407,1.7754,3239.8,3239.4,3.2078]
[1736905208408,3.28065712,3239.7,3239.4,3.2078]
[1736905208600,1.7754,3239.8,3239.5,40.8]
[1736905208905,3.28065712,3239.7,3239.5,40.8]
[1736905209106,4.55665712,3239.7,3239.5,40.8]
[1736905209500,1.276,3239.7,3239.4,3.2078]
[1736905209701,0.30885,3239.2,3238.7,0.30889]
[1736905210003,0.30885,3239.2,3238.6,2.997]
[1736905210004,0.4874,3239.1,3238.8,44.0078]
[1736905210304,0.4874,3239.1,3238.8,40.8]
[1736905210503,1.276,3239.0,3238.8,40.8]
[1736905210706,4.51947015,3239.0,3238.4,3.2078]
[1736905210902,4.82835015,3239.0,3238.4,3.51673]
[1736905211103,4.82835015,3239.0,3238.5,40.8]
[1736905211510,4.51947015,3239.0,3238.5,40.8]
[1736905211705,4.82835015,3239.0,3238.5,40.8]
[1736905212303,4.82835015,3239.0,3238.5,41.10892]
[1736905213002,4.51947015,3239.0,3238.5,40.8]
[1736905213308,4.51947015,3239.0,3238.9,0.30888]
[1736905213309,3.24347015,3239.0,3238.9,0.30888]
[1736905213803,3.34187319,3239.2,3239.1,0.30886]
[1736905214007,1.276,3239.3,3239.0,0.30886]
[1736905214212,3.35841724,3239.2,3239.0,0.30886]
[1736905214400,3.35841724,3239.2,3238.9,3.2078]
[1736905214604,3.35841724,3239.2,3239.1,0.30886]
[1736905215007,1.276,3239.6,3238.9,3.2078]
[1736905215209,1.276,3239.6,3239.4,3.2078]
[1736905215410,3.33173666,3239.5,3239.4,3.2078]
[1736905215711,3.33173666,3239.5,3239.4,44.31663]
[1736905216208,3.33173666,3239.5,3239.4,44.0078]
[1736905216404,3.33173666,3239.5,3239.4,44.31663]
[1736905217608,0.4741,3239.8,3239.7,0.3088]
[1736905217806,0.4741,3239.8,3239.5,0.30882]
[1736905218011,3.49378674,3239.7,3239.6,0.30881]
[1736905219008,1.7367,3240.1,3239.4,44.0078]
[1736905219009,1.276,3240.1,3239.4,46.93318622]
[1736905219309,1.276,3240.1,3240.0,0.30878]
[1736905219810,4.57371223,3240.1,3240.0,0.30878]
[1736905220009,4.57371223,3240.1,3239.4,46.93318622]
[1736905220325,3.29771223,3240.1,3239.9,0.30878]
[1736905220612,4.4838,3240.3,3240.0,0.30878]
[1736905220809,3.54906279,3240.2,3240.0,0.30878]
[1736905221206,4.4838,3240.3,3240.0,0.30878]
[1736905221601,3.51914761,3240.2,3240.0,0.30878]
[1736905221804,3.51914761,3240.2,3240.1,0.30877]
[1736905222010,3.51914761,3240.2,3240.0,0.30877]
[1736905222230,0.9713,3240.8,3240.7,0.30871]
[1736905222516,3.46712836,3240.7,3240.5,3.2078]
[1736905222817,3.46712836,3240.7,3240.6,40.8]
[1736905222818,3.77583836,3240.7,3240.6,40.8]
[1736905223017,3.77583836,3240.7,3240.3,0.30874]
[1736905223311,3.46712836,3240.7,3240.3,0.30874]
[1736905223512,3.77583836,3240.7,3240.4,40.8]
[1736905223713,3.46712836,3240.7,3240.4,41.10873]
[1736905224310,0.30872,3240.6,3240.4,40.8]
[1736905224610,0.30876,3240.2,3239.7,3.2078]
[1736905224815,0.30874,3240.4,3240.0,0.30877]
[1736905225018,3.33794261,3240.1,3240.0,0.30877]
[1736905225217,0.30874,3240.4,3240.0,0.30877]
[1736905225218,3.3561303,3240.3,3240.0,0.30877]
[1736905225613,0.30874,3240.4,3239.7,44.0078]
[1736905225815,3.3561303,3240.3,3239.8,2.92538622]
[1736905226010,3.3561303,3240.3,3240.2,0.30876]
[1736905226319,0.30875,3240.3,3239.9,0.30878]
[1736905226819,3.56185386,3240.2,3239.8,0.30879]
[1736905227010,3.25309386,3240.2,3239.9,0.30878]
[1736905227210,0.30875,3240.3,3239.9,0.30878]
[1736905227411,3.21072454,3240.2,3239.7,44.0078]
[1736905227714,4.79154,3240.5,3240.1,0.30876]
[1736905227909,3.21072454,3240.3,3240.2,0.30875]
[1736905228109,1.275,3240.5,3240.2,0.30875]
[1736905228411,3.43339207,3240.3,3240.2,0.30875]
[1736905228613,3.43339207,3240.4,3240.0,3.2078]
[1736905228814,0.4958,3240.8,3240.2,2.92538622]
[1736905229120,0.4752,3241.2,3240.6,2.92538622]
[1736905229412,3.2631734,3241.1,3241.0,3.2078]
[1736905229619,3.2631734,3241.1,3241.0,3.51648]
[1736905230013,3.21345147,3241.2,3241.0,3.2078]
[1736905230218,3.21345147,3241.2,3241.1,0.30867]
[1736905230519,3.21345147,3241.4,3241.3,0.30865]
[1736905230717,0.4529,3241.6,3241.1,40.8]
[1736905231018,0.4571,3241.7,3241.4,3.2078]
[1736905231223,3.37486683,3241.5,3241.4,3.51644]
[1736905231417,3.37486683,3241.6,3241.5,0.30863]
[1736905231721,1.7321,3241.7,3241.5,0.30863]
[1736905232019,3.37486683,3241.6,3241.5,0.30863]
[1736905232514,3.37486683,3241.6,3241.4,3.2078]
[1736905232822,3.37486683,3241.6,3241.5,0.30863]
[1736905233022,3.68349683,3241.6,3241.4,3.51644]
[1736905233222,3.37486683,3241.6,3241.4,3.51644]
[1736905233422,3.37486683,3241.6,3241.5,0.30863]
[1736905233923,3.37486683,3241.6,3241.4,3.2078]
[1736905234110,3.68349683,3241.6,3241.4,3.2078]
[1736905234316,3.37486683,3241.6,3241.4,3.2078]
[1736905235015,3.37486683,3241.6,3241.1,40.8]
[1736905235222,3.37486683,3241.6,3240.6,6.13318622]
[1736905235533,0.30869,3240.9,3240.7,0.3087]
[1736905235718,0.4564,3240.8,3240.7,41.1087]
[1736905235924,3.88671752,3240.8,3240.7,41.1087]
[1736905236325,3.88671752,3240.8,3240.7,40.8]
[1736905236523,3.88671752,3240.8,3240.7,41.10871]
[1736905236927,3.88671752,3240.8,3240.7,40.8]
[1736905237830,3.88671752,3240.8,3240.7,41.10871]
[1736905238029,3.88671752,3240.8,3240.7,40.8]
[1736905238530,4.19541752,3240.8,3240.7,40.8]
[1736905238725,3.88671752,3240.8,3240.7,40.8]
[1736905238928,3.88671752,3240.8,3240.7,41.10871]
[1736905239629,4.19541752,3240.8,3240.7,40.8]
[1736905239831,3.88671752,3240.8,3240.7,41.10871]
[1736905242323,4.19541752,3240.8,3240.7,40.8]
[1736905242523,3.88671752,3240.8,3240.7,41.10871]
[1736905242733,3.88671752,3240.8,3240.7,40.8]
[1736905243029,4.19541752,3240.8,3240.7,40.8]
[1736905245834,3.88671752,3240.8,3240.7,40.8]
[1736905246431,4.19541752,3240.8,3240.7,40.8]
[1736905246730,3.88671752,3240.8,3240.7,40.8]
[1736905247129,4.19541752,3240.8,3240.7,40.8]
[1736905248032,0.30871,3240.7,3240.1,3.2078]
[1736905248233,0.30876,3240.2,3240.1,3.2078]
[1736905248635,0.30876,3240.2,3239.3,0.7721]
[1736905248636,3.56599979,3240.2,3239.6,3.2078]
[1736905249029,0.30877,3240.1,3239.8,0.30879]
[1736905249231,0.4907,3240.0,3239.7,40.8]
[1736905249431,3.86513687,3240.0,3239.7,41.1088]
[1736905249635,4.33713687,3240.0,3239.7,41.1088]
[1736905249834,4.64591687,3240.0,3239.7,41.1088]
[1736905250234,4.33713687,3240.0,3239.7,41.1088]
[1736905251438,4.64591687,3240.0,3239.7,40.8]
[1736905251638,0.30879,3239.9,3239.7,40.8]
[1736905251932,0.30879,3239.8,3239.7,40.8]
[1736905252139,3.32082583,3239.8,3239.7,40.8]
[1736905252338,3.34333116,3239.9,3239.7,40.8]
[1736905252734,0.30879,3239.9,3239.7,40.8]
[1736905252940,3.65212116,3239.9,3239.7,40.8]
[1736905253241,3.34333116,3239.9,3239.7,40.8]
[1736905253439,3.65212116,3239.9,3239.7,40.8]
[1736905254136,3.34333116,3239.9,3239.7,40.8]
[1736905254439,3.65212116,3239.9,3239.7,40.8]
[1736905254638,0.30879,3239.8,3239.7,40.8]
[1736905254839,3.34333116,3239.9,3239.6,3.2078]
[1736905255143,0.491,3239.7,3238.7,3.2078]
[1736905255441,0.491,3239.7,3238.8,40.8]
[1736905255442,0.30887,3239.1,3238.8,40.8]
[1736905255838,3.38773289,3239.0,3238.8,40.8]
[1736905256446,0.30893,3238.4,3238.1,3.2078]
[1736905256836,4.9682,3238.9,3238.2,40.8]
[1736905256837,3.34716055,3238.3,3238.2,40.8]
[1736905257343,0.30894,3238.3,3238.2,40.8]
[1736905257547,3.85654995,3238.3,3238.2,40.8]
[1736905257844,3.54760995,3238.3,3238.2,40.8]
[1736905258138,0.30893,3238.4,3238.2,40.8]
[1736905258347,0.30894,3238.3,3238.2,40.8]
[1736905258543,3.61829618,3238.3,3238.2,40.8]
[1736905258743,0.30894,3238.3,3238.2,40.8]
[1736905259138,3.61829618,3238.3,3238.2,40.8]
[1736905260141,3.30935618,3238.3,3238.2,40.8]
[1736905260436,4.9682,3238.9,3238.2,40.8]
[1736905260437,0.30893,3238.4,3238.2,40.8]
[1736905260843,3.38130736,3238.3,3237.6,3.2078]
[1736905261049,0.309,3237.7,3237.2,3.2078]
[1736905261345,1.7461,3238.2,3237.6,3.5168]
[1736905261647,0.30897,3238.0,3237.6,3.5168]
[1736905261945,0.30897,3238.0,3237.6,3.2078]
[1736905262146,3.55310843,3237.9,3237.6,3.2078]
[1736905262348,3.55310843,3237.9,3237.3,41.10903]
[1736905262646,3.47728215,3238.0,3237.3,41.10903]
[1736905262845,3.7062,3238.1,3237.3,40.8]
[1736905263041,3.47728215,3237.9,3237.5,0.30901]
[1736905263247,3.47728215,3237.9,3237.5,3.2078]
[1736905263451,0.30898,3237.9,3237.5,3.2078]
[1736905263744,3.54268799,3237.8,3237.5,3.2078]
[1736905264340,3.85167799,3237.8,3237.5,3.2078]
[1736905264741,0.309,3237.7,3237.5,3.2078]
[1736905264941,0.309,3237.6,3237.5,3.2078]
[1736905265439,3.29154696,3237.6,3237.3,40.8]
[1736905265641,2.07482,3237.5,3237.3,40.8]
[1736905266039,3.29154696,3237.4,3237.3,40.8]
[1736905267642,3.60056696,3237.4,3237.3,40.8]
[1736905268241,3.29154696,3237.4,3237.3,40.8]
[1736905268544,3.60056696,3237.4,3237.3,40.8]
[1736905268743,0.30905,3237.1,3237.0,3.2078]
[1736905268939,0.30909,3236.7,3236.6,3.2078]
[1736905269347,4.9712986,3236.7,3236.6,3.2078]
[1736905269550,4.6622086,3236.7,3236.6,3.2078]
[1736905269747,4.9712986,3236.7,3236.6,3.2078]
[1736905270648,4.9712986,3236.7,3236.3,40.8]
[1736905270649,4.6622086,3236.7,3236.3,40.8]
[1736905270842,0.30913,3236.3,3236.2,3.2078]
[1736905271245,3.83587696,3236.3,3236.2,3.2078]
[1736905271438,3.52674696,3236.3,3236.2,3.2078]
[1736905271844,0.30913,3236.3,3236.2,3.2078]
[1736905272050,0.30916,3236.0,3235.8,40.8]
[1736905272258,0.30917,3235.9,3235.8,40.8]
[1736905272454,3.71610387,3235.9,3235.8,40.8]
[1736905272752,6.92390387,3235.9,3235.8,40.8]
[1736905272951,6.61473387,3235.9,3235.1,3.2078]
[1736905273148,6.61473387,3235.9,3234.6,0.9835]
[1736905273149,0.30925,3235.1,3234.7,3.2078]
[1736905273459,1.61125,3235.1,3234.8,40.8]
[1736905273646,3.34914632,3235.0,3234.8,40.8]
[1736905274055,3.34914632,3235.0,3234.8,41.10927]
[1736905274250,3.34914632,3235.0,3234.8,40.8]
[1736905275456,0.30926,3234.9,3234.8,40.8]
[1736905275847,3.51710032,3234.9,3234.8,40.8]
[1736905276049,3.51710032,3234.9,3234.8,41.10927]
[1736905276446,3.53743754,3235.0,3234.8,41.10927]
[1736905276654,1.302,3235.1,3234.8,40.8]
[1736905277056,3.53743754,3235.0,3234.8,41.10927]
[1736905277456,3.53743754,3235.0,3234.8,40.8]
[1736905277753,1.7887,3235.6,3234.9,0.9303]
[1736905277951,0.30921,3235.4,3235.1,3.2078]
[1736905278156,3.85565513,3235.4,3235.1,3.2078]
[1736905278345,3.54644513,3235.5,3234.9,0.9303]
[1736905278551,2.0979,3235.6,3234.9,0.9303]
[1736905278750,3.47362787,3235.3,3235.1,0.30924]
[1736905278957,3.47362787,3235.5,3235.1,0.30924]
[1736905279154,3.2078,3235.9,3234.9,3.85568622]
[1736905279456,3.35896945,3235.6,3235.4,3.2078]
[1736905279859,0.3092,3235.6,3235.5,40.8]
[1736905280357,3.44049383,3235.6,3235.5,40.8]
[1736905280559,3.74969383,3235.6,3235.5,40.8]
[1736905280758,4.20369383,3235.6,3235.5,40.8]
[1736905281257,3.89449383,3235.6,3235.0,3.2078]
[1736905281550,3.2078,3235.4,3235.0,3.2078]
[1736905281752,3.2078,3235.4,3235.1,40.8]
[1736905281954,3.73628779,3235.3,3235.1,40.8]
[1736905282153,3.42705779,3235.3,3235.1,40.8]
[1736905282655,3.73628779,3235.3,3235.1,40.8]
[1736905282959,3.42705779,3235.3,3235.1,40.8]
[1736905283254,0.454,3235.6,3235.1,40.8]
[1736905283760,3.27176383,3235.5,3235.1,40.8]
[1736905284062,0.30923,3235.2,3235.1,40.8]
[1736905284449,0.30923,3235.2,3234.4,0.4972]
[1736905284450,3.88196399,3235.2,3234.7,0.30927]
[1736905284650,3.88196399,3235.2,3234.5,3.2078]
[1736905284651,3.57273399,3235.2,3234.5,3.2078]
[1736905284852,3.57273399,3235.2,3234.6,40.8]
[1736905285050,3.57273399,3235.5,3235.3,0.30922]
[1736905285260,3.2078,3235.6,3235.3,0.30922]
[1736905285651,3.51817697,3235.5,3235.3,0.30922]
[1736905286055,2.13052238,3235.6,3235.3,0.30922]
[1736905286250,3.32700802,3235.4,3235.3,0.30922]
[1736905286553,3.32700802,3235.5,3235.3,0.30922]
[1736905286853,1.7994,3235.8,3235.5,0.3092]
[1736905287053,0.4974,3235.8,3235.3,3.2078]
[1736905287261,3.34159507,3235.6,3235.5,0.30921]
[1736905287456,3.34159507,3235.6,3235.3,3.2078]
[1736905287457,1.302,3236.3,3235.4,0.9507]
[1736905287764,1.302,3236.3,3236.2,0.30914]
[1736905287961,14.3338,3236.9,3236.0,3.2078]
[1736905288149,1.302,3236.7,3236.6,0.3091]
[1736905288353,3.46306272,3236.7,3236.6,0.3091]
[1736905288554,0.30907,3237.0,3236.6,0.3091]
[1736905288960,3.20621465,3236.7,3236.6,0.3091]
[1736905289160,1.302,3236.9,3236.5,3.2078]
[1736905289354,1.302,3236.9,3236.6,0.3091]
[1736905289557,3.58301469,3236.8,3236.7,0.30909]
[1736905289750,3.23443622,3237.2,3236.7,0.30909]
[1736905290055,3.58301469,3236.8,3236.7,0.30909]
[1736905290460,1.302,3237.4,3236.7,5.0]
[1736905290759,3.39121656,3237.3,3237.2,0.30904]
[1736905291162,5.00222656,3237.6,3237.1,0.30905]
[1736905291371,4.69321656,3237.6,3237.2,0.30904]
[1736905291563,1.302,3237.6,3237.5,0.30901]
[1736905291860,3.2078,3237.7,3237.3,3.2078]
[1736905292161,3.2078,3237.7,3237.6,0.309]
[1736905292560,1.61097,3238.0,3237.6,0.309]
[1736905292754,1.302,3238.0,3237.3,3.2078]
[1736905293068,1.302,3238.0,3237.0,3.39928622]
[1736905293069,3.86938622,3238.3,3237.9,3.2078]
[1736905293260,1.25294,3238.3,3237.9,3.2078]
[1736905293461,4.67530533,3238.2,3237.9,3.2078]
[1736905294157,6.58110533,3238.2,3237.5,3.2078]
[1736905294361,0.30892,3238.5,3237.9,3.51677]
[1736905294862,3.49789627,3238.4,3237.9,3.51677]
[1736905295057,3.49789627,3238.4,3237.9,3.2078]
[1736905295258,0.30894,3238.3,3237.9,3.2078]
[1736905295662,3.27835058,3238.2,3237.9,3.2078]
[1736905296064,3.27835058,3238.2,3237.9,3.51677]
[1736905296366,3.43652123,3238.4,3238.0,0.30897]
[1736905296669,1.64691,3238.6,3238.1,0.30896]
[1736905296670,1.338,3238.6,3238.1,0.30896]
[1736905296862,1.338,3238.6,3237.9,3.2078]
[1736905297059,3.43652123,3238.4,3237.9,3.2078]
[1736905297260,3.43652123,3238.5,3238.0,0.30897]
[1736905297455,1.338,3238.6,3237.9,3.2078]
[1736905297669,3.40011509,3238.5,3237.9,3.2078]
[1736905297854,3.40011509,3238.5,3238.3,0.30893]
[1736905298061,3.40011509,3238.6,3238.3,0.30893]
[1736905298261,2.2948,3238.8,3238.3,0.30893]
[1736905298662,2.2948,3238.8,3238.1,0.30895]
[1736905298663,3.37320264,3238.5,3238.1,0.30895]
[1736905298861,3.37320264,3238.7,3238.2,0.30895]
[1736905299071,2.6037,3238.8,3238.2,0.30895]
[1736905299264,3.37320264,3238.4,3238.0,0.4896]
[1736905299465,3.30652807,3238.7,3238.3,0.30894]
[1736905299670,2.2948,3238.8,3238.3,0.30894]
[1736905299871,3.30652807,3238.7,3238.3,0.30894]
[1736905300368,3.30652807,3238.7,3238.3,3.51674]
[1736905300560,3.61542807,3238.7,3238.3,3.2078]
[1736905300764,3.30652807,3238.7,3238.3,3.2078]
[1736905301067,3.30652807,3238.7,3238.6,0.30891]
[1736905301568,3.30652807,3238.7,3238.3,3.2078]
[1736905301769,3.30652807,3238.7,3238.5,0.30891]
[1736905302164,3.30652807,3238.7,3238.6,40.8]
[1736905302971,3.30652807,3238.7,3238.3,3.2078]
[1736905303167,0.3089,3238.7,3238.3,3.51673]
[1736905303572,3.52416326,3238.6,3238.3,3.51673]
[1736905303874,3.52416326,3238.6,3238.4,0.30892]
[1736905304171,3.83307326,3238.6,3238.3,3.51673]
[1736905304467,0.30892,3238.5,3238.3,3.2078]
[1736905304662,3.33368095,3238.9,3238.3,3.2078]
[1736905304858,3.33368095,3238.5,3238.3,3.2078]
[1736905305063,0.30891,3238.6,3238.4,0.30893]
[1736905305265,0.30891,3238.6,3238.3,3.51673]
[1736905305472,3.32689251,3238.5,3238.3,3.51673]
[1736905305670,3.63581251,3238.5,3238.3,3.51673]
[1736905305967,0.30889,3238.8,3238.3,3.2078]
[1736905306270,3.23485658,3238.7,3238.6,0.3089]
[1736905306677,3.23485658,3238.8,3238.7,0.3089]
[1736905306869,3.23485658,3238.8,3238.7,3.5167]
[1736905307066,0.78417,3239.1,3238.8,0.30889]
[1736905307274,0.4753,3239.1,3238.7,3.2078]
[1736905307573,0.4753,3239.1,3238.9,0.30887]
[1736905307775,3.53758115,3239.0,3238.9,0.30887]
[1736905308676,3.53758115,3239.0,3238.8,0.30889]
[1736905309178,3.53758115,3239.0,3238.7,3.2078]
[1736905309371,3.53758115,3239.0,3238.7,3.5167]
[1736905309372,3.84646115,3239.0,3238.7,3.5167]
[1736905309673,3.53758115,3239.0,3238.8,0.30889]
[1736905309979,3.53758115,3239.0,3238.9,0.30888]
[1736905310875,0.4939,3239.4,3239.3,0.30884]
[1736905311176,4.02764362,3239.4,3239.3,0.30884]
[1736905311367,3.53374362,3239.4,3239.3,41.10884]
[1736905311676,1.337,3239.7,3239.6,0.30881]
[1736905311971,3.52364599,3239.6,3239.5,3.2078]
[1736905312370,2.295,3240.5,3239.5,3.2078]
[1736905312567,0.958,3240.5,3240.4,0.30874]
[1736905312876,4.17564176,3240.5,3240.4,0.30874]
[1736905314678,4.17564176,3240.5,3240.4,3.51654]
[1736905315579,3.21764176,3240.5,3240.4,3.51654]
[1736905315779,0.30866,3241.2,3240.8,0.3087]
[1736905315973,4.5448,3241.3,3240.8,0.3087]
[1736905316179,4.5448,3241.3,3240.9,40.8]
[1736905316180,0.30868,3241.1,3240.9,40.8]
[1736905316680,3.2937236,3241.0,3240.9,41.10869]
[1736905316979,3.2937236,3241.1,3240.9,40.8]
[1736905317185,3.6023936,3241.1,3240.9,40.8]
[1736905317375,0.30867,3241.1,3240.9,40.8]
[1736905317677,3.43272673,3241.0,3240.3,3.2078]
[1736905317880,3.2078,3240.8,3240.3,3.2078]
[1736905318178,1.26731,3240.7,3240.3,3.2078]
[1736905318380,4.70003673,3240.7,3240.3,3.2078]
[1736905318680,0.30874,3240.4,3240.3,3.2078]
[1736905318984,1.64573,3240.5,3240.3,3.2078]
[1736905319181,1.64573,3240.5,3239.4,3.85758622]
[1736905319182,0.30875,3240.3,3239.8,3.51659]
[1736905319381,0.30876,3240.2,3239.8,3.2078]
[1736905319580,4.22955598,3240.2,3239.8,3.2078]
[1736905319885,0.77366,3240.2,3239.7,0.3088]
[1736905320189,3.45589598,3240.1,3239.5,40.8]
[1736905320376,0.30878,3240.0,3239.6,0.30881]
[1736905320577,4.79289598,3240.1,3239.5,40.8]
[1736905320578,0.4599,3239.9,3239.5,40.8]
[1736905320878,3.71141483,3239.9,3239.5,40.8]
[1736905321077,0.30881,3239.7,3239.5,40.8]
[1736905321372,3.29828549,3239.6,3239.5,40.8]
[1736905321775,3.29828549,3239.7,3239.5,40.8]
[1736905321979,0.30881,3239.7,3239.5,40.8]
[1736905322185,0.7883,3239.8,3239.5,40.8]
[1736905322386,3.49517496,3239.7,3239.5,40.8]
[1736905322686,0.30881,3239.6,3239.5,40.8]
[1736905322885,0.30884,3239.4,3239.0,3.2078]
[1736905323180,3.49517496,3239.3,3239.0,3.2078]
[1736905323385,3.49517496,3239.3,3239.1,40.8]
[1736905323584,0.30885,3239.3,3239.1,40.8]
[1736905323886,0.30885,3239.2,3239.1,40.8]
[1736905324087,1.337,3239.4,3239.0,3.2078]
[1736905324385,0.3089,3238.7,3238.3,0.30894]
[1736905324585,0.3089,3238.7,3238.2,0.30894]
[1736905324780,3.39128622,3239.1,3238.1,3.2078]
[1736905324781,3.29809507,3238.6,3238.1,3.2078]
[1736905325284,0.30893,3238.4,3238.1,3.2078]
[1736905325783,0.30893,3238.4,3238.3,40.8]
[1736905326387,3.60440233,3238.4,3238.3,40.8]
[1736905326585,3.29547233,3238.4,3238.1,3.2078]
[1736905326789,0.30899,3237.8,3237.6,3.2078]
[1736905327083,3.2078,3238.3,3237.7,40.8]
[1736905327293,0.30895,3238.2,3237.7,40.8]
[1736905327587,3.43898293,3238.2,3237.8,0.30899]
[1736905327776,3.2078,3238.3,3238.1,0.30896]
[1736905327976,0.4801,3238.5,3238.1,3.51675]
[1736905327977,1.8311,3238.5,3238.1,3.51675]
[1736905328180,2.14002,3238.5,3238.1,3.2078]
[1736905328687,0.30893,3238.4,3238.1,3.2078]
[1736905328898,3.27162352,3238.4,3237.7,44.0078]
[1736905329289,3.27162352,3238.4,3238.2,0.30895]
[1736905329488,1.351,3238.6,3238.3,0.30894]
[1736905329882,3.31781621,3238.5,3238.2,0.30894]
[1736905330082,3.31781621,3238.5,3238.1,3.2078]
[1736905330284,1.351,3238.9,3238.7,0.3089]
[1736905330681,3.24362989,3238.7,3238.6,3.2078]
[1736905330889,3.24362989,3238.8,3238.6,3.2078]
[1736905331079,1.351,3238.9,3238.2,3.2078]
[1736905331286,0.4825,3238.7,3238.2,3.2078]
[1736905331592,0.30894,3238.3,3238.2,3.2078]
[1736905331786,0.30895,3238.2,3237.7,3.51679]
[1736905331988,3.22934837,3238.3,3237.8,40.8]
[1736905332190,3.22934837,3238.1,3237.9,0.30897]
[1736905332399,0.30893,3238.4,3237.8,40.8]
[1736905332586,0.4756,3238.3,3237.8,40.8]
[1736905332787,3.60869208,3238.2,3237.8,41.10898]
[1736905333087,0.78454,3238.3,3238.0,0.30896]
[1736905333280,3.29974208,3238.1,3237.8,40.8]
[1736905333596,3.39437406,3238.2,3237.8,40.8]
[1736905333795,0.4756,3238.3,3237.8,40.8]
[1736905333987,3.39437406,3238.2,3237.8,40.8]
[1736905334188,0.30897,3238.0,3237.8,40.8]
[1736905334494,0.30896,3238.1,3237.8,40.8]
[1736905334689,0.30896,3238.1,3237.8,41.10898]
[1736905334891,3.39437406,3238.2,3237.8,40.8]
[1736905335083,0.4825,3238.7,3238.1,3.2078]
[1736905335287,0.4904,3238.9,3238.5,3.2078]
[1736905335684,0.4904,3238.9,3238.7,0.30889]
[1736905335685,3.38372766,3238.8,3238.7,0.30889]
[1736905336086,1.351,3239.1,3238.9,0.30888]
[1736905336399,1.351,3239.1,3238.9,3.2078]
[1736905337091,1.351,3239.3,3238.9,3.2078]
[1736905337398,4.71730079,3239.3,3238.9,3.2078]
[1736905337596,4.71730079,3239.3,3239.2,0.30885]
[1736905337895,1.65982,3239.6,3239.1,0.30886]
[1736905338198,4.71730079,3239.6,3239.3,0.30883]
[1736905338694,3.36630079,3239.6,3239.5,0.30882]